bitfinex/quotes_BTCUSD_20241013
["timestamp","ask_amount","ask_price","bid_price","bid_amount"]
[1728857282575,0.002,63099.0,63098.0,0.27249]
[1728857282797,0.002,63099.0,63098.0,0.430973]
[1728857283214,0.160481,63099.0,63098.0,0.27249]
[1728857284078,0.001,63099.0,63098.0,0.27249]
[1728857284593,0.316944,63103.0,63098.0,0.27249]
[1728857284803,0.47816801,63103.0,63098.0,0.27249]
[1728857285015,0.159481,63099.0,63098.0,0.27249]
[1728857285637,0.42070501,63099.0,63098.0,0.27249]
[1728857285867,0.44270501,63099.0,63098.0,0.27249]
[1728857286706,0.44370501,63099.0,63098.0,0.27249]
[1728857287402,0.259481,63099.0,63098.0,0.27249]
[1728857287616,0.259481,63099.0,63098.0,0.274132]
[1728857288026,0.259302,63099.0,63098.0,0.274132]
[1728857288248,0.261302,63099.0,63098.0,0.274132]
[1728857289108,0.28413129,63099.0,63098.0,0.274132]
[1728857289525,0.28513129,63099.0,63098.0,0.274132]
[1728857291026,0.260302,63099.0,63098.0,0.274132]
[1728857291685,0.259302,63099.0,63098.0,0.274132]
[1728857291889,0.265302,63099.0,63098.0,0.274132]
[1728857292114,0.268302,63099.0,63098.0,0.274132]
[1728857292330,0.259302,63099.0,63098.0,0.274132]
[1728857292960,0.44352601,63099.0,63098.0,0.274132]
[1728857293785,0.44352601,63099.0,63098.0,0.197842]
[1728857294010,0.46835634,63099.0,63098.0,0.197842]
[1728857294228,0.47135634,63099.0,63098.0,0.197842]
[1728857294446,0.44652601,63099.0,63098.0,0.197842]
[1728857294669,0.44352601,63099.0,63098.0,0.197842]
[1728857294946,0.44952601,63099.0,63098.0,0.197842]
[1728857295158,0.45252601,63099.0,63098.0,0.197842]
[1728857295360,0.44952601,63099.0,63098.0,0.197842]
[1728857295771,0.45252601,63099.0,63098.0,0.197842]
[1728857297452,0.44652601,63099.0,63098.0,0.197842]
[1728857297878,0.44852601,63099.0,63098.0,0.197842]
[1728857298094,0.45052601,63099.0,63098.0,0.197842]
[1728857298526,0.47535642,63099.0,63098.0,0.197842]
[1728857298973,0.47335642,63099.0,63098.0,0.197842]
[1728857299402,0.47635642,63099.0,63098.0,0.197842]
[1728857299617,0.46835642,63099.0,63098.0,0.197842]
[1728857299856,0.47035642,63099.0,63098.0,0.197842]
[1728857300073,0.45152601,63099.0,63098.0,0.197842]
[1728857300305,0.49903929,63099.0,63098.0,0.197842]
[1728857300518,0.49303929,63099.0,63098.0,0.197842]
[1728857300742,0.4980399,63099.0,63098.0,0.197842]
[1728857300964,0.49803926,63099.0,63098.0,0.197842]
[1728857301191,0.52179585,63099.0,63098.0,0.197842]
[1728857301633,0.51979585,63099.0,63098.0,0.197842]
[1728857301865,0.51983374,63099.0,63098.0,0.197842]
[1728857302095,0.45152601,63099.0,63098.0,0.197842]
[1728857302358,0.44852601,63099.0,63098.0,0.197842]
[1728857302849,0.44352601,63099.0,63098.0,0.197842]
[1728857303081,0.44952601,63099.0,63098.0,0.197842]
[1728857303307,0.59313928,63099.0,63098.0,0.197842]
[1728857303533,0.46835621,63099.0,63098.0,0.197842]
[1728857303784,0.47135621,63099.0,63098.0,0.197842]
[1728857310212,0.589251,63099.0,63098.0,0.197842]
[1728857310735,0.58929863,63099.0,63098.0,0.197842]
[1728857312143,0.0990073,63099.0,63098.0,0.76689752]
[1728857312384,0.07138247,63104.0,63102.0,0.2106]
[1728857312614,0.07138247,63106.0,63105.0,0.293966]
[1728857312859,0.07138247,63106.0,63105.0,0.38459033]
[1728857312860,0.30910603,63106.0,63105.0,0.38459033]
[1728857313111,0.07137645,63106.0,63105.0,0.1405]
[1728857313340,0.07136118,63106.0,63105.0,0.298966]
[1728857313579,0.07136118,63107.0,63106.0,0.158463]
[1728857313822,0.07136118,63107.0,63106.0,0.32369926]
[1728857314049,0.0951863,63108.0,63106.0,0.32369926]
[1728857314507,0.07134478,63107.0,63106.0,0.16523626]
[1728857315256,0.07134478,63108.0,63106.0,0.16523626]
[1728857315500,0.07234478,63108.0,63106.0,0.16523626]
[1728857315754,0.001,63107.0,63106.0,0.17023626]
[1728857316237,0.001,63107.0,63106.0,0.32369926]
[1728857316464,0.07134478,63108.0,63106.0,0.32369926]
[1728857316685,0.07134478,63108.0,63107.0,0.158461]
[1728857316913,0.07134478,63108.0,63106.0,0.28655419]
[1728857316914,0.07134478,63110.0,63109.0,0.306456]
[1728857317191,0.07134478,63115.0,63114.0,0.005]
[1728857317421,0.07134478,63118.0,63117.0,0.158435]
[1728857317632,0.0496194,63119.0,63116.0,0.143]
[1728857317633,0.07134478,63119.0,63118.0,0.158433]
[1728857317852,0.07134478,63119.0,63116.0,0.143]
[1728857318072,0.09616581,63119.0,63116.0,0.143]
[1728857318337,0.158435,63117.0,63116.0,0.143]
[1728857319233,0.34168503,63119.0,63116.0,0.143]
[1728857319465,0.1,63118.0,63116.0,0.143]
[1728857319678,0.258435,63118.0,63116.0,0.143]
[1728857319895,0.1,63118.0,63116.0,0.143]
[1728857320132,0.159435,63117.0,63116.0,0.148]
[1728857320646,0.158435,63117.0,63116.0,0.143]
[1728857321072,0.1,63118.0,63116.0,0.143]
[1728857321289,0.158435,63117.0,63116.0,0.143]
[1728857321715,0.001,63117.0,63116.0,0.149]
[1728857321928,0.258434,63118.0,63116.0,0.147]
[1728857322163,0.158435,63117.0,63116.0,0.153]
[1728857322383,0.158435,63117.0,63116.0,0.149]
[1728857322599,0.159435,63117.0,63116.0,0.148]
[1728857322813,0.160435,63117.0,63116.0,0.154]
[1728857323255,0.002,63117.0,63116.0,0.154]
[1728857323918,0.160435,63117.0,63116.0,0.154]
[1728857324163,0.002,63117.0,63116.0,0.154]
[1728857324656,0.002,63117.0,63116.0,0.31923626]
[1728857324880,0.002,63117.0,63116.0,0.56067426]
[1728857325850,0.00082,63123.0,63122.0,0.32365926]
[1728857326088,0.00082,63123.0,63122.0,0.54995926]
[1728857327270,0.0491891,63130.0,63129.0,0.384705]
[1728857327495,0.0491891,63130.0,63129.0,0.65177626]
[1728857327711,0.23772356,63135.0,63134.0,0.005]
[1728857327933,0.23772356,63135.0,63134.0,0.163393]
[1728857328154,0.158375,63141.0,63138.0,0.005]
[1728857328377,0.0495259,63142.0,63139.0,0.1327]
[1728857328645,0.15837,63143.0,63141.0,0.16523626]
[1728857328898,0.23772356,63144.0,63141.0,0.16523626]
[1728857328899,0.15837,63144.0,63141.0,0.16523626]
[1728857329118,0.158373,63142.0,63141.0,0.16523626]
[1728857330026,0.02481343,63142.0,63141.0,0.16523626]
[1728857330474,0.02481343,63142.0,63141.0,0.17123626]
[1728857330727,0.18318643,63142.0,63141.0,0.006]
[1728857330964,0.48836152,63142.0,63141.0,0.004]
[1728857331196,0.48836152,63142.0,63141.0,0.001]
[1728857331411,0.44259701,63142.0,63141.0,0.001]
[1728857331628,0.158393,63134.0,63133.0,0.23772356]
[1728857332075,0.158395,63133.0,63132.0,0.0848]
[1728857332777,0.004,63142.0,63136.0,0.005]
[1728857333002,0.158385,63137.0,63136.0,0.005]
[1728857334364,0.0248148,63137.0,63136.0,0.005]
[1728857334593,0.0258148,63137.0,63136.0,0.012]
[1728857335101,0.1841998,63137.0,63136.0,0.007]
[1728857335322,0.68142458,63137.0,63136.0,0.007]
[1728857335545,0.67942458,63137.0,63136.0,0.009]
[1728857335979,0.68142458,63137.0,63136.0,0.007]
[1728857336221,0.63366007,63137.0,63136.0,0.007]
[1728857336454,0.63366007,63137.0,63136.0,0.008]
[1728857336692,0.46842381,63137.0,63136.0,0.008]
[1728857336914,0.123,63136.0,63123.0,0.1352]
[1728857337140,0.258418,63124.0,63123.0,0.1352]
[1728857337836,0.28323734,63124.0,63123.0,0.1352]
[1728857338515,0.28323734,63124.0,63123.0,0.1382]
[1728857338739,0.44446135,63124.0,63123.0,0.1382]
[1728857340056,0.44846135,63124.0,63123.0,0.1352]
[1728857340565,0.41964201,63124.0,63123.0,0.1352]
[1728857340772,0.42464201,63124.0,63123.0,0.1352]
[1728857340891,0.42564201,63124.0,63123.0,0.1352]
[1728857341110,0.42464201,63124.0,63123.0,0.1352]
[1728857341763,0.263418,63124.0,63123.0,0.1352]
[1728857342005,0.263418,63124.0,63123.0,0.17838763]
[1728857342006,0.1,63124.0,63123.0,0.17838763]
[1728857342253,0.104,63124.0,63123.0,0.17838763]
[1728857342475,0.004,63124.0,63123.0,0.33680763]
[1728857342704,0.004,63124.0,63123.0,0.17838763]
[1728857342953,0.258411,63127.0,63123.0,0.29862]
[1728857343200,0.23772356,63129.0,63127.0,0.08]
[1728857343201,0.158406,63129.0,63127.0,0.08]
[1728857343439,0.316797,63132.0,63127.0,0.08]
[1728857343682,0.158408,63128.0,63127.0,0.08]
[1728857344170,0.0495551,63136.0,63127.0,0.238408]
[1728857344410,0.1,63134.0,63127.0,0.082]
[1728857344634,0.316795,63133.0,63127.0,0.08]
[1728857344894,0.158408,63128.0,63127.0,0.083]
[1728857345819,0.158404,63130.0,63127.0,0.083]
[1728857346507,0.316803,63131.0,63127.0,0.08]
[1728857346729,0.158418,63124.0,63123.0,0.1352]
[1728857347896,0.28142,63123.0,63122.0,0.00164]
[1728857348194,0.44264401,63123.0,63122.0,0.00164]
[1728857349362,0.4674667,63123.0,63122.0,0.00164]
[1728857350307,0.4774667,63123.0,63122.0,0.00264]
[1728857350763,0.45764401,63123.0,63122.0,0.00264]
[1728857351513,0.44264401,63123.0,63122.0,0.00164]
[1728857352128,0.45064401,63123.0,63122.0,0.00264]
[1728857352942,0.45064401,63123.0,63122.0,0.379363]
[1728857352943,0.01,63123.0,63122.0,0.379363]
[1728857353157,0.002,63123.0,63122.0,0.46450893]
[1728857353578,0.007,63123.0,63122.0,0.46450893]
[1728857354236,0.005,63123.0,63122.0,0.46450893]
[1728857354460,0.006,63123.0,63122.0,0.47650893]
[1728857354662,0.001,63123.0,63122.0,0.47650893]
[1728857355079,0.002,63123.0,63122.0,0.398363]
[1728857360792,0.00282,63123.0,63122.0,0.398363]
[1728857365978,0.02763803,63123.0,63122.0,0.398363]
[1728857367048,0.00282,63123.0,63122.0,0.398363]
[1728857370145,0.11855598,63135.0,63122.0,0.398363]
[1728857370146,0.28514595,63137.0,63135.0,0.005]
[1728857370349,0.23772356,63137.0,63135.0,0.32862626]
[1728857370562,0.23772356,63137.0,63136.0,0.158388]
[1728857370766,0.04742239,63141.0,63136.0,0.005]
[1728857370989,0.04742239,63141.0,63137.0,0.316771]
[1728857371266,0.04742239,63141.0,63135.0,0.48201626]
[1728857371267,0.20579739,63141.0,63140.0,0.005]
[1728857371479,0.04742239,63141.0,63140.0,0.005]
[1728857371689,0.20584711,63142.0,63140.0,0.005]
[1728857371891,0.04747411,63142.0,63140.0,0.005]
[1728857372101,0.04747411,63141.0,63140.0,0.005]
[1728857372306,0.04747411,63141.0,63140.0,0.1092541]
[1728857372532,0.04747411,63142.0,63140.0,0.1092541]
[1728857372949,0.00082,63141.0,63140.0,0.1092541]
[1728857373359,0.00082,63141.0,63140.0,0.3999321]
[1728857373606,0.00082,63141.0,63140.0,0.4763321]
[1728857373859,0.00082,63141.0,63140.0,0.4793321]
[1728857374054,0.00082,63141.0,63140.0,0.4763321]
[1728857374796,0.00082,63141.0,63140.0,0.4773321]
[1728857375479,0.00082,63141.0,63140.0,0.4813321]
[1728857375700,0.00082,63141.0,63140.0,0.4773321]
[1728857376188,0.00082,63141.0,63140.0,0.4903321]
[1728857376584,0.00082,63141.0,63140.0,0.4943321]
[1728857377044,0.00082,63141.0,63140.0,0.4903321]
[1728857377278,0.00082,63141.0,63140.0,0.5023321]
[1728857378483,0.02562933,63141.0,63140.0,0.5023321]
[1728857379276,0.02562933,63141.0,63140.0,0.026]
[1728857379277,0.18400433,63141.0,63140.0,0.026]
[1728857379280,0.41399285,63141.0,63140.0,0.026]
[1728857379521,0.43938123,63141.0,63140.0,0.026]
[1728857379757,0.43938123,63141.0,63140.0,0.014]
[1728857379978,0.158393,63134.0,63133.0,0.1329]
[1728857380673,0.18320747,63134.0,63133.0,0.1329]
[1728857381102,0.158393,63134.0,63133.0,0.1329]
[1728857381549,0.158391,63135.0,63133.0,0.1329]
[1728857381749,0.316773,63137.0,63133.0,0.1329]
[1728857381971,0.158393,63134.0,63133.0,0.1329]
[1728857382199,0.00082,63141.0,63140.0,0.005]
[1728857382419,0.159195,63141.0,63140.0,0.005]
[1728857383124,0.159195,63141.0,63138.0,0.005]
[1728857383125,0.00082,63141.0,63138.0,0.005]
[1728857383356,0.15838,63139.0,63138.0,0.005]
[1728857387247,0.15838,63139.0,63138.0,0.007]
[1728857387880,0.00082,63141.0,63140.0,0.005]
[1728857388720,0.159195,63141.0,63140.0,0.005]
[1728857389379,0.18400769,63141.0,63140.0,0.005]
[1728857389733,0.158378,63140.0,63139.0,0.005]
[1728857391249,0.158378,63140.0,63139.0,0.006]
[1728857391453,0.158378,63140.0,63139.0,0.0214389]
[1728857391665,0.158378,63140.0,63139.0,0.005]
[1728857392095,0.00082,63141.0,63140.0,0.005]
[1728857392543,0.159195,63141.0,63140.0,0.005]
[1728857392777,0.00082,63141.0,63140.0,0.005]
[1728857393703,0.00082,63141.0,63140.0,0.163378]
[1728857393896,0.00082,63141.0,63140.0,0.10904493]
[1728857394105,0.02563058,63141.0,63140.0,0.10904493]
[1728857394305,0.02563058,63141.0,63140.0,0.26842293]
[1728857394575,0.02563058,63141.0,63140.0,0.26742293]
[1728857394803,0.02563058,63141.0,63140.0,0.27242293]
[1728857395020,0.00082,63141.0,63140.0,0.27242293]
[1728857395634,0.00082,63141.0,63140.0,0.43765919]
[1728857395847,0.00082,63141.0,63140.0,0.56875919]
[1728857396052,0.00082,63141.0,63140.0,0.57075919]
[1728857397086,0.00082,63141.0,63140.0,0.40552293]
[1728857397498,0.00082,63141.0,63140.0,0.41048363]
[1728857398172,0.00082,63141.0,63140.0,0.40552293]
[1728857399425,0.02562919,63141.0,63140.0,0.40552293]
[1728857400052,0.00082,63141.0,63140.0,0.40552293]
[1728857403311,0.00082,63141.0,63140.0,0.57075919]
[1728857403518,0.00082,63141.0,63140.0,0.74690593]
[1728857403753,0.00082,63141.0,63140.0,0.88643759]
[1728857404380,0.00082,63141.0,63140.0,0.88443759]
[1728857404603,0.00082,63141.0,63140.0,0.87943759]
[1728857405021,0.00082,63141.0,63140.0,0.89343759]
[1728857405225,0.00082,63141.0,63140.0,0.89143759]
[1728857405432,0.00082,63141.0,63140.0,0.90543759]
[1728857406399,0.00082,63141.0,63140.0,0.72432703]
[1728857407906,0.00082,63141.0,63140.0,0.70150694]
[1728857408125,0.00082,63141.0,63140.0,0.71440349]
[1728857408340,0.00082,63141.0,63140.0,0.71638218]
[1728857409020,0.00082,63141.0,63140.0,0.71138218]
[1728857409243,0.00082,63141.0,63140.0,0.71638218]
[1728857410580,0.00082,63141.0,63140.0,0.55015817]
[1728857411058,0.00082,63141.0,63140.0,0.55515817]
[1728857411601,0.00082,63141.0,63140.0,0.5452434]
[1728857411832,0.00082,63141.0,63140.0,0.52339618]
[1728857412270,0.00082,63141.0,63140.0,0.5134834]
[1728857412696,0.00082,63141.0,63140.0,0.5452434]
[1728857413183,0.00082,63141.0,63140.0,0.50352293]
[1728857414677,0.00082,63141.0,63140.0,0.42652293]
[1728857414919,0.159195,63141.0,63140.0,0.028]
[1728857415915,0.159195,63141.0,63140.0,0.014]
[1728857416195,0.70184791,63141.0,63140.0,0.014]
[1728857416455,0.65441978,63141.0,63140.0,0.014]
[1728857416693,0.69045527,63141.0,63140.0,0.016]
[1728857416949,0.69045527,63141.0,63140.0,0.002]
[1728857417198,0.158418,63124.0,63122.0,0.24436356]
[1728857417941,0.18323524,63124.0,63122.0,0.00664]
[1728857419158,0.18323524,63124.0,63123.0,0.00564]
[1728857420108,0.18405524,63124.0,63123.0,0.00664]
[1728857420594,0.18405524,63124.0,63123.0,0.00164]
[1728857420844,0.18405524,63124.0,63123.0,0.00364]
[1728857421089,0.159238,63124.0,63123.0,0.00364]
[1728857421371,0.159238,63124.0,63123.0,0.00764]
[1728857421613,0.159238,63124.0,63123.0,0.00364]
[1728857421863,0.159238,63124.0,63123.0,0.00864]
[1728857423176,0.32046201,63124.0,63123.0,0.00664]
[1728857423428,0.32046201,63124.0,63123.0,0.00164]
[1728857423679,0.32046201,63124.0,63123.0,0.00464]
[1728857423923,0.32046201,63124.0,63123.0,0.00164]
[1728857424178,0.32246201,63124.0,63123.0,0.00164]
[1728857424427,0.34728147,63124.0,63123.0,0.00164]
[1728857425885,0.34628147,63124.0,63123.0,0.00164]
[1728857427335,0.34728147,63124.0,63123.0,0.00164]
[1728857429060,0.51604598,63124.0,63123.0,0.00164]
[1728857429287,0.58712858,63124.0,63123.0,0.00164]
[1728857429528,0.54132759,63124.0,63123.0,0.00164]
[1728857430239,0.261238,63124.0,63123.0,0.00164]
[1728857430719,0.00282,63124.0,63123.0,0.00164]
[1728857430943,0.159238,63124.0,63123.0,0.00164]
[1728857431161,0.160238,63124.0,63123.0,0.00164]
[1728857431383,0.161238,63124.0,63123.0,0.00164]
[1728857431631,0.160238,63124.0,63123.0,0.00164]
[1728857431856,0.159238,63124.0,63123.0,0.00164]
[1728857432083,0.160238,63124.0,63123.0,0.01678394]
[1728857432306,0.00182,63124.0,63123.0,0.01678394]
[1728857432527,0.160238,63124.0,63123.0,0.01678394]
[1728857433018,0.00182,63124.0,63123.0,0.00164]
[1728857433248,0.160238,63124.0,63123.0,0.01766997]
[1728857433514,0.159238,63124.0,63123.0,0.01666997]
[1728857433742,0.159238,63124.0,63123.0,0.01866997]
[1728857433998,0.159238,63124.0,63123.0,0.00364]
[1728857434737,0.159238,63124.0,63123.0,0.01866997]
[1728857434965,0.18405725,63124.0,63123.0,0.01866997]
[1728857435676,0.36822126,63124.0,63123.0,0.01866997]
[1728857435912,0.36822126,63124.0,63123.0,0.00364]
[1728857436622,0.46822126,63124.0,63123.0,0.00164]
[1728857436877,0.47022126,63124.0,63123.0,0.00264]
[1728857437360,0.54542126,63124.0,63123.0,0.00164]
[1728857437614,0.54642126,63124.0,63123.0,0.00264]
[1728857439340,0.47022126,63124.0,63123.0,0.00264]
[1728857439585,0.18599725,63124.0,63123.0,0.00764]
[1728857440283,0.18499725,63124.0,63123.0,0.02171215]
[1728857440809,0.18499725,63124.0,63123.0,0.01771215]
[1728857441050,0.161178,63124.0,63123.0,0.01771215]
[1728857441974,0.161178,63124.0,63123.0,0.02271215]
[1728857442480,0.32240201,63124.0,63123.0,0.01771215]
[1728857442737,0.34540201,63124.0,63123.0,0.01771215]
[1728857442963,0.34540201,63124.0,63123.0,0.00264]
[1728857444448,0.37022224,63124.0,63123.0,0.00264]
[1728857446105,0.47022224,63124.0,63123.0,0.00264]
[1728857451081,0.52520201,63124.0,63123.0,0.00264]
[1728857451343,0.61825416,63124.0,63123.0,0.00264]
[1728857451595,0.57296652,63124.0,63123.0,0.00264]
[1728857451834,0.66754181,63124.0,63123.0,0.00264]
[1728857452083,0.69118564,63124.0,63123.0,0.00264]
[1728857452569,0.69024884,63124.0,63123.0,0.00164]
[1728857452795,0.69024884,63124.0,63123.0,0.00264]
[1728857452796,0.52620201,63124.0,63123.0,0.00264]
[1728857453041,0.52620201,63124.0,63123.0,0.00364]
[1728857453042,0.52920201,63124.0,63123.0,0.00364]
[1728857453272,0.64351441,63124.0,63123.0,0.00164]
[1728857453722,0.64951441,63124.0,63123.0,0.00364]
[1728857453939,0.64951441,63124.0,63123.0,0.00264]
[1728857454159,0.65251441,63124.0,63123.0,0.00364]
[1728857454377,0.55102645,63124.0,63123.0,0.00264]
[1728857455750,0.44867426,63116.0,63115.0,0.00197]
[1728857455980,0.68769827,63116.0,63115.0,1e-06]
[1728857456195,0.73346278,63116.0,63115.0,1e-06]
[1728857456666,0.75829138,63116.0,63115.0,1e-06]
[1728857457176,0.002,63108.0,63107.0,0.00206]
[1728857457386,0.53944821,63108.0,63107.0,0.00206]
[1728857457605,0.44468201,63108.0,63107.0,0.00206]
[1728857458057,0.46751199,63108.0,63107.0,0.00206]
[1728857458313,0.5622916,63108.0,63107.0,0.00206]
[1728857458548,0.46751199,63108.0,63107.0,0.00206]
[1728857458771,0.46951199,63108.0,63107.0,0.00206]
[1728857459193,0.47951199,63108.0,63107.0,0.00206]
[1728857459675,0.61196975,63108.0,63107.0,0.00206]
[1728857460084,0.49351199,63108.0,63107.0,0.00206]
[1728857461050,0.46868201,63108.0,63107.0,0.00206]
[1728857461519,0.54828201,63108.0,63107.0,1e-06]
[1728857462223,0.53428201,63108.0,63107.0,1e-06]
[1728857462453,0.52428201,63108.0,63107.0,1e-06]
[1728857462686,0.53828201,63108.0,63107.0,1e-06]
[1728857462906,0.55228201,63108.0,63107.0,1e-06]
[1728857463123,0.53828201,63108.0,63107.0,1e-06]
[1728857463438,0.281478,63100.0,63099.0,0.00197]
[1728857463822,0.70275211,63100.0,63099.0,0.00197]
[1728857464063,0.67904779,63100.0,63099.0,0.00197]
[1728857464775,0.67903044,63100.0,63099.0,0.00197]
[1728857465489,0.69103044,63100.0,63099.0,0.00197]
[1728857465712,0.71586315,63100.0,63099.0,0.00197]
[1728857465927,0.72986315,63100.0,63099.0,0.00197]
[1728857466179,0.65877098,63100.0,63099.0,0.00197]
[1728857466411,0.49353472,63100.0,63099.0,0.00197]
[1728857466633,0.39353472,63100.0,63099.0,0.00197]
[1728857467078,0.39353472,63100.0,63099.0,0.00361]
[1728857467271,0.37953472,63100.0,63099.0,0.00361]
[1728857467515,0.39353472,63100.0,63099.0,0.00361]
[1728857468389,0.48153472,63100.0,63099.0,0.00361]
[1728857468613,0.49453472,63100.0,63099.0,0.00361]
[1728857468845,0.48053472,63100.0,63099.0,0.00361]
[1728857469075,0.48553472,63100.0,63099.0,0.00361]
[1728857469309,0.48653472,63100.0,63099.0,0.00361]
[1728857470496,0.46353472,63100.0,63099.0,0.00361]
[1728857471234,0.43870201,63100.0,63099.0,0.00361]
[1728857473051,0.277478,63100.0,63099.0,0.00361]
[1728857473495,0.277478,63100.0,63099.0,0.01678038]
[1728857473714,0.277478,63100.0,63099.0,0.00361]
[1728857475726,0.30230721,63100.0,63099.0,0.00361]
[1728857477834,0.20230721,63100.0,63099.0,0.00361]
[1728857478293,0.20230721,63100.0,63099.0,0.01677581]
[1728857478547,0.20230721,63100.0,63099.0,0.00361]
[1728857478834,0.20230721,63100.0,63099.0,0.01673356]
[1728857479075,0.20230721,63100.0,63099.0,0.01671845]
[1728857481192,0.177478,63100.0,63099.0,0.01671845]
[1728857482896,0.177478,63100.0,63099.0,0.24141845]
[1728857482897,0.019,63100.0,63099.0,0.24141845]
[1728857483132,0.019,63100.0,63099.0,0.39989945]
[1728857483601,0.019,63100.0,63099.0,0.47175019]
[1728857484098,0.0493773,63112.0,63099.0,0.47175019]
[1728857484099,0.0493773,63112.0,63107.0,0.163461]
[1728857484331,0.0493773,63112.0,63107.0,0.379261]
[1728857484332,0.23854356,63108.0,63107.0,0.379261]
[1728857484561,0.00082,63108.0,63107.0,0.39210531]
[1728857485724,0.02664259,63108.0,63107.0,0.39210531]
[1728857485953,0.02664259,63108.0,63107.0,0.54341937]
[1728857486188,0.02764259,63108.0,63107.0,0.54341937]
[1728857488266,0.02764259,63108.0,63107.0,0.38495837]
[1728857488498,0.02764259,63108.0,63107.0,0.54341937]
[1728857491031,0.00282,63108.0,63107.0,0.54341937]
[1728857495679,0.02764281,63108.0,63107.0,0.54341937]
[1728857497666,0.02764281,63108.0,63107.0,0.70964338]
[1728857497903,0.00282,63108.0,63107.0,0.74836654]
[1728857499022,0.00182,63108.0,63107.0,0.74836654]
[1728857499239,0.00282,63108.0,63107.0,0.74636654]
[1728857499466,0.00182,63108.0,63107.0,0.74836654]
[1728857499804,0.00282,63108.0,63107.0,0.74836654]
[1728857500904,0.00282,63108.0,63107.0,0.74636654]
[1728857504500,0.00282,63108.0,63107.0,0.58514253]
[1728857504743,0.00282,63108.0,63107.0,0.58514245]
[1728857505435,0.00282,63108.0,63107.0,0.58017937]
[1728857505655,0.00282,63108.0,63107.0,0.58514245]
[1728857506327,0.00282,63108.0,63107.0,0.74636646]
[1728857507735,0.02482045,63115.0,63114.0,0.168443]
[1728857507991,0.02482045,63115.0,63114.0,0.68427286]
[1728857508123,0.02482045,63115.0,63114.0,0.69678131]
[1728857508943,0.02682045,63115.0,63114.0,0.69878131]
[1728857509507,0.02682045,63115.0,63114.0,0.69378131]
[1728857510976,0.002,63115.0,63114.0,0.52854505]
[1728857511333,0.002,63115.0,63114.0,0.37010205]
[1728857511553,0.002,63115.0,63114.0,0.23130845]
[1728857512195,0.002,63115.0,63114.0,0.23630845]
[1728857512415,0.001,63115.0,63114.0,0.23630845]
[1728857512629,0.002,63115.0,63114.0,0.39675145]
[1728857512844,0.001,63115.0,63114.0,0.4978057]
[1728857513280,0.002642,63115.0,63114.0,0.3393627]
[1728857513703,0.002642,63115.0,63114.0,0.4978057]
[1728857514134,0.003642,63115.0,63114.0,0.5008057]
[1728857515670,0.02846225,63115.0,63114.0,0.5008057]
[1728857519389,0.02846225,63115.0,63114.0,0.50576869]
[1728857521153,0.003642,63115.0,63114.0,0.50576869]
[1728857521362,0.003642,63115.0,63114.0,0.5008057]
[1728857521578,0.003642,63115.0,63114.0,0.50576866]
[1728857522465,0.003642,63115.0,63114.0,0.51076866]
[1728857523293,0.003642,63115.0,63114.0,0.50576866]
[1728857524086,0.02846201,63115.0,63114.0,0.50576866]
[1728857524787,0.02846201,63115.0,63114.0,0.40271441]
[1728857524988,0.02846201,63115.0,63114.0,0.39775145]
[1728857525813,0.02846201,63115.0,63114.0,0.39275145]
[1728857526000,0.02846201,63115.0,63114.0,0.39775145]
[1728857526443,0.02846201,63115.0,63114.0,0.40271476]
[1728857526651,0.02846201,63115.0,63114.0,0.53855644]
[1728857529105,0.02846201,63115.0,63114.0,0.54355644]
[1728857529318,0.02846201,63115.0,63114.0,0.56144633]
[1728857529532,0.02846201,63115.0,63114.0,0.55644633]
[1728857529751,0.02846201,63115.0,63114.0,0.53855602]
[1728857531006,0.003642,63115.0,63114.0,0.53855602]
[1728857532343,0.003642,63115.0,63114.0,0.39775145]
[1728857533004,0.003642,63115.0,63114.0,0.40271471]
[1728857533430,0.003642,63115.0,63114.0,0.39775145]
[1728857533647,0.003642,63115.0,63114.0,0.40271474]
[1728857533847,0.003642,63115.0,63114.0,0.39775145]
[1728857534077,0.02846285,63115.0,63114.0,0.50090599]
[1728857534915,0.02846285,63115.0,63114.0,0.67110536]
[1728857537701,0.02846285,63115.0,63114.0,0.67310536]
[1728857537931,0.02846285,63115.0,63114.0,0.67110536]
[1728857539031,0.02846285,63115.0,63114.0,0.67610536]
[1728857539255,0.02846285,63115.0,63114.0,0.83732937]
[1728857539474,0.02846285,63115.0,63114.0,0.88699837]
[1728857540389,0.02746285,63115.0,63114.0,0.88499837]
[1728857540600,0.02746285,63115.0,63114.0,0.71677436]
[1728857541017,0.003642,63115.0,63114.0,0.70188536]
[1728857541228,0.002642,63115.0,63114.0,0.69592225]
[1728857541435,0.002642,63115.0,63114.0,0.71083203]
[1728857541659,0.001642,63115.0,63114.0,0.71577264]
[1728857542526,0.001642,63115.0,63114.0,1.04723291]
[1728857542945,0.28528917,63122.0,63121.0,0.005]
[1728857543174,0.23772356,63123.0,63122.0,0.158423]
[1728857543402,0.00076,63124.0,63123.0,0.36662]
[1728857543610,0.00076,63124.0,63123.0,0.38452792]
[1728857543809,0.00076,63124.0,63123.0,0.38952792]
[1728857544037,0.00076,63124.0,63123.0,0.55589763]
[1728857544038,0.02557628,63124.0,63123.0,0.55589763]
[1728857544233,0.02557628,63124.0,63123.0,0.57377199]
[1728857544447,0.02557628,63124.0,63123.0,0.734996]
[1728857544858,0.02657628,63124.0,63123.0,0.742996]
[1728857545076,0.02657628,63124.0,63123.0,0.753996]
[1728857545269,0.02657628,63124.0,63123.0,0.74299435]
[1728857545709,0.02657628,63124.0,63123.0,0.75699435]
[1728857545912,0.04759897,63134.0,63133.0,0.005]
[1728857546132,0.0495344,63135.0,63134.0,0.375093]
[1728857546384,0.00082,63141.0,63140.0,0.163378]
[1728857546596,0.00082,63141.0,63140.0,0.3414736]
[1728857546809,0.00082,63141.0,63140.0,0.48143435]
[1728857547043,0.00082,63141.0,63140.0,0.64280406]
[1728857547255,0.00082,63141.0,63140.0,0.63784331]
[1728857548164,0.00082,63141.0,63140.0,0.47260705]
[1728857548600,0.00182,63141.0,63140.0,0.48560705]
[1728857549019,0.00082,63141.0,63140.0,0.47260705]